bitfinex/quotes_BTCUSD_20211001
["timestamp","ask_amount","ask_price","bid_price","bid_amount"]
[1633054661447,0.52132118,43570.0,43563.0,0.00086]
[1633054662249,0.43023864,43570.0,43563.0,0.00086]
[1633054662647,0.39823864,43570.0,43563.0,0.00086]
[1633054663247,0.43023864,43570.0,43563.0,0.00086]
[1633054663849,0.42970877,43570.0,43563.0,0.00086]
[1633054664048,0.43023864,43570.0,43563.0,0.00086]
[1633054664248,0.42970877,43570.0,43563.0,0.00086]
[1633054664448,0.39823864,43570.0,43563.0,0.00086]
[1633054665055,0.39770877,43570.0,43563.0,0.00086]
[1633054665253,0.07925077,43570.0,43563.0,0.00086]
[1633054665453,0.07925077,43570.0,43563.0,0.20348466]
[1633054665656,0.07925077,43570.0,43569.0,0.01892885]
[1633054665853,0.07925077,43570.0,43569.0,6.965e-05]
[1633054666453,0.07978064,43570.0,43569.0,6.965e-05]
[1633054666852,0.05378064,43570.0,43569.0,6.965e-05]
[1633054667053,0.16378064,43570.0,43569.0,6.965e-05]
[1633054667254,0.17978064,43570.0,43569.0,6.965e-05]
[1633054668058,0.52418464,43570.0,43569.0,6.965e-05]
[1633054668655,0.50818464,43570.0,43569.0,6.965e-05]
[1633054669256,0.53018464,43570.0,43569.0,6.965e-05]
[1633054670458,0.50818464,43570.0,43569.0,6.965e-05]
[1633054671264,0.53118464,43570.0,43569.0,6.965e-05]
[1633054671459,0.22960762,43567.0,43560.0,0.11123256]
[1633054671659,0.22960762,43567.0,43561.0,0.0189279]
[1633054671861,0.00052987,43566.0,43561.0,0.0189279]
[1633054672059,0.22960762,43567.0,43561.0,0.0189279]
[1633054672462,0.24587358,43563.0,43561.0,0.0189279]
[1633054672860,0.24587358,43563.0,43562.0,0.019325]
[1633054673258,0.26587358,43563.0,43562.0,0.019325]
[1633054673860,0.02,43563.0,43562.0,0.019325]
[1633054674661,0.22960762,43567.0,43562.0,0.019325]
[1633054674862,0.22956462,43566.0,43562.0,0.019325]
[1633054675266,0.22903475,43566.0,43562.0,0.019325]
[1633054675463,0.27903475,43566.0,43562.0,0.019325]
[1633054675663,0.00052987,43565.0,43562.0,0.019325]
[1633054675863,0.00052987,43565.0,43563.0,0.00946634]
[1633054676065,0.05,43566.0,43563.0,0.00946634]
[1633054676263,0.05,43566.0,43560.0,0.344391]
[1633054676465,0.24960762,43567.0,43561.0,0.01907236]
[1633054676663,0.22960762,43567.0,43561.0,0.01907236]
[1633054676864,0.22960762,43567.0,43561.0,0.01914831]
[1633054677063,0.00052987,43566.0,43562.0,0.01912678]
[1633054677266,0.42101857,43567.0,43562.0,0.01912678]
[1633054677464,0.24160762,43567.0,43562.0,0.01912678]
[1633054677668,0.012,43567.0,43565.0,0.09566531]
[1633054678067,0.11,43570.0,43566.0,0.01574151]
[1633054678466,0.29867209,43570.0,43566.0,0.01574151]
[1633054678865,0.29867209,43570.0,43566.0,0.01571511]
[1633054679267,0.00052987,43569.0,43566.0,0.04071511]
[1633054679468,0.00052987,43569.0,43567.0,0.0108711]
[1633054679666,0.32667209,43570.0,43567.0,0.0108711]
[1633054680471,0.34493887,43569.0,43566.0,0.025]
[1633054680867,0.00052987,43568.0,43566.0,0.025]
[1633054681270,0.01952987,43568.0,43566.0,0.019]
[1633054681468,0.344423,43567.0,43566.0,0.019]
[1633054681671,0.34495287,43567.0,43566.0,0.019]
[1633054681869,0.39495287,43567.0,43566.0,0.019]
[1633054682070,0.40065394,43567.0,43566.0,0.019]
[1633054682478,0.60851415,43567.0,43566.0,0.019]
[1633054682671,0.60851415,43567.0,43561.0,7.595e-05]
[1633054682871,0.43226038,43562.0,43561.0,7.595e-05]
[1633054683067,0.43583982,43562.0,43561.0,7.595e-05]
[1633054683270,0.48583982,43562.0,43561.0,7.595e-05]
[1633054683467,0.48583982,43562.0,43561.0,0.02507595]
[1633054684070,0.83033182,43562.0,43561.0,0.02507595]
[1633054684270,1.03612216,43562.0,43561.0,0.02507595]
[1633054684470,1.03612216,43562.0,43559.0,0.00026]
[1633054684471,0.3,43561.0,43559.0,0.00026]
[1633054684672,0.23389961,43560.0,43558.0,6e-05]
[1633054684870,0.05552273,43559.0,43558.0,6e-05]
[1633054685069,0.40007673,43559.0,43558.0,6e-05]
[1633054685271,0.6,43558.0,43556.0,0.00014]
[1633054685473,0.21453302,43557.0,43556.0,0.00014]
[1633054685674,0.26506289,43557.0,43556.0,0.00014]
[1633054686272,0.55,43556.0,43555.0,0.00086]
[1633054686472,3.04561838,43556.0,43555.0,0.00046]
[1633054686669,3.09614825,43556.0,43555.0,0.00026]
[1633054686869,0.3,43555.0,43553.0,0.00022]
[1633054687072,0.30123973,43554.0,43553.0,0.00022]
[1633054687274,1.43886816,43554.0,43553.0,0.00022]
[1633054687471,1.99309408,43554.0,43553.0,0.00022]
[1633054687870,0.4,43553.0,43550.0,0.00022]
[1633054688072,0.40127285,43551.0,43550.0,0.00022]
[1633054688273,0.05180272,43551.0,43550.0,0.00022]
[1633054688476,0.15276254,43551.0,43550.0,0.00022]
[1633054688676,0.49744154,43551.0,43550.0,0.00022]
[1633054689074,0.39744154,43551.0,43550.0,0.00022]
[1633054689271,0.42744154,43551.0,43550.0,0.00022]
[1633054689470,0.42616869,43551.0,43550.0,0.00022]
[1633054690370,0.08,43551.0,43550.0,0.01650111]
[1633054690571,0.21611253,43554.0,43550.0,0.01650111]
[1633054690572,0.20957992,43554.0,43550.0,0.01650111]
[1633054690770,1.43053571,43553.0,43550.0,0.00022]
[1633054691375,1.51053571,43553.0,43550.0,0.00022]
[1633054691576,1.43053571,43552.0,43550.0,0.00022]
[1633054692177,1.43053571,43552.0,43551.0,0.0161789]
[1633054692375,0.03,43553.0,43551.0,0.0161789]
[1633054692574,0.03,43553.0,43552.0,0.09695465]
[1633054692773,1.43053571,43553.0,43552.0,0.01930563]
[1633054692973,1.43106558,43561.0,43550.0,0.00022]
[1633054693173,1.43053571,43560.0,43550.0,0.00022]
[1633054693374,0.24474887,43552.0,43550.0,0.00022]
[1633054693776,0.2419073,43551.0,43550.0,0.00022]
[1633054693975,0.00052987,43551.0,43550.0,0.00022]
[1633054694244,0.026,43553.0,43550.0,0.23273246]
[1633054694381,0.026,43553.0,43552.0,0.90124427]
[1633054694577,0.00129862,43568.0,43553.0,0.54439254]
[1633054694777,0.344415,43569.0,43561.0,0.11899572]
[1633054694975,0.344415,43569.0,43562.0,0.2306726]
[1633054695175,0.22660152,43568.0,43564.0,0.07064255]
[1633054695374,0.22660152,43568.0,43565.0,0.22159507]
[1633054695576,0.00052987,43567.0,43565.0,0.22159507]
[1633054695780,0.22966468,43567.0,43566.0,0.00852562]
[1633054695982,0.028,43569.0,43566.0,0.37512309]
[1633054696178,0.028,43569.0,43568.0,0.13250917]
[1633054696377,0.028,43569.0,43568.0,0.47726041]
[1633054696575,0.574096,43584.0,43568.0,0.47726041]
[1633054696576,0.0999,43583.0,43568.0,0.47726041]
[1633054696780,0.1961933,43583.0,43576.0,0.23197859]
[1633054696978,0.00052987,43582.0,43577.0,0.2365166]
[1633054697245,0.47578209,43583.0,43577.0,0.2365166]
[1633054697378,0.47578209,43583.0,43578.0,0.01616269]
[1633054697379,0.49478209,43583.0,43578.0,0.01616269]
[1633054697583,0.49478209,43583.0,43582.0,0.11876583]
[1633054697584,0.1189,43583.0,43582.0,0.11876583]
[1633054697780,0.1189,43583.0,43582.0,0.27669484]
[1633054698377,0.019,43583.0,43582.0,0.27669484]
[1633054698777,0.18094946,43584.0,43582.0,0.27669484]
[1633054698979,0.18094946,43584.0,43583.0,0.23686398]
[1633054699385,0.18094946,43584.0,43583.0,0.22186155]
[1633054699386,0.20994946,43584.0,43583.0,0.22186155]
[1633054699577,0.20994946,43584.0,43583.0,0.2235283]
[1633054700579,0.20994946,43584.0,43583.0,0.1958608]
[1633054700790,0.23216365,43584.0,43583.0,0.00979579]
[1633054700980,0.23921412,43584.0,43567.0,1.1061]
[1633054701180,0.00123295,43576.0,43566.0,0.5923]
[1633054701383,0.00052987,43575.0,43566.0,0.5923]
[1633054701579,0.00052987,43575.0,43561.0,0.96329062]
[1633054701580,0.19728362,43570.0,43563.0,0.21381748]
[1633054701784,0.02477641,43572.0,43567.0,0.20775646]
[1633054701982,0.01256376,43569.0,43567.0,0.20775646]
[1633054702779,0.22892505,43572.0,43567.0,0.20775646]
[1633054702980,0.01448034,43571.0,43567.0,0.20775646]
[1633054703380,0.01448034,43571.0,43567.0,0.23675646]
[1633054704182,0.021,43572.0,43569.0,0.10608763]
[1633054704381,0.021,43572.0,43570.0,0.2403692]
[1633054704588,0.021,43572.0,43569.0,0.10608763]
[1633054704782,0.23755177,43576.0,43570.0,0.228463]
[1633054704981,0.23755177,43576.0,43569.0,0.10608763]
[1633054705387,0.01227372,43575.0,43570.0,0.035]
[1633054705780,0.23755177,43576.0,43570.0,0.035]
[1633054705981,0.00052987,43575.0,43570.0,0.035]
[1633054706244,0.34755177,43576.0,43570.0,0.035]
[1633054706386,0.39755177,43576.0,43570.0,0.035]
[1633054706583,0.00052987,43575.0,43568.0,0.34433]
[1633054706784,0.01771139,43573.0,43566.0,0.229563]
[1633054707382,0.01771139,43573.0,43566.0,0.265563]
[1633054707684,0.01771139,43573.0,43567.0,0.23178858]
[1633054707886,0.39755177,43576.0,43567.0,0.23178858]
[1633054708088,0.00052987,43575.0,43566.0,0.26709023]
[1633054708286,0.01263556,43573.0,43566.0,0.26709023]
[1633054708688,0.01263556,43573.0,43566.0,0.23109023]
[1633054709087,0.00052987,43572.0,43566.0,0.23109023]
[1633054709287,0.01229745,43571.0,43566.0,0.23109023]
[1633054709487,0.01229745,43571.0,43566.0,0.26609023]
[1633054709689,0.014,43573.0,43566.0,0.26609023]
[1633054710288,0.014,43573.0,43568.0,0.344326]
[1633054710685,0.11,43576.0,43568.0,0.344326]
[1633054710885,0.00052987,43575.0,43568.0,0.344326]
[1633054711089,0.11,43576.0,43568.0,0.344326]
[1633054711488,0.11,43576.0,43571.0,0.24944387]
[1633054712089,0.11,43576.0,43571.0,0.229537]
[1633054712488,0.01250605,43575.0,43571.0,0.229537]
[1633054712688,0.01250605,43575.0,43572.0,0.00152707]
[1633054712889,0.11,43576.0,43572.0,0.00152707]
[1633054713087,0.33363763,43576.0,43572.0,0.00152707]
[1633054713387,0.00052987,43575.0,43572.0,0.02952707]
[1633054713587,0.0122929,43574.0,43572.0,0.02952707]
[1633054713987,0.00052987,43573.0,43572.0,0.02952707]
[1633054714190,0.01312047,43573.0,43572.0,0.02952707]
[1633054714388,0.0125906,43573.0,43572.0,0.02952707]
[1633054714793,0.01231023,43574.0,43572.0,0.00152707]
[1633054714990,0.00052987,43575.0,43572.0,0.00152707]
[1633054715391,0.24625132,43574.0,43572.0,0.03552707]
[1633054715591,0.11,43576.0,43572.0,0.03552707]
[1633054716195,0.012449,43575.0,43572.0,0.03552707]
[1633054716790,0.11,43576.0,43572.0,0.00152707]
[1633054717594,0.11,43576.0,43572.0,0.03552707]
[1633054717793,0.11,43576.0,43574.0,0.02077554]
[1633054717992,0.11,43576.0,43575.0,0.18286686]
[1633054719400,0.11,43576.0,43575.0,0.85354695]
[1633054719596,0.11,43576.0,43575.0,0.91573132]
[1633054719597,0.12,43576.0,43575.0,0.91573132]
[1633054720795,0.11,43576.0,43575.0,0.88373132]
[1633054721195,0.11,43576.0,43575.0,0.66053132]
[1633054721599,0.11,43576.0,43575.0,0.31884737]
[1633054721807,0.12257972,43576.0,43575.0,0.0602]
[1633054722002,0.12310959,43576.0,43575.0,0.0602]
[1633054722799,0.12310959,43576.0,43575.0,0.0202]
[1633054723202,0.12257972,43576.0,43575.0,0.0202]
[1633054723411,0.11,43576.0,43575.0,0.0202]
[1633054723601,0.13,43576.0,43575.0,0.279663]
[1633054724600,0.13,43576.0,43575.0,0.46128817]
[1633054724801,0.11,43576.0,43575.0,0.43028817]
[1633054724999,0.11,43576.0,43575.0,0.248663]
[1633054725599,0.114,43576.0,43575.0,0.283663]
[1633054726801,0.11,43576.0,43575.0,0.248663]
[1633054727262,0.11,43576.0,43575.0,0.2692734]
[1633054727607,0.121,43576.0,43575.0,0.3042734]
[1633054728803,0.11,43576.0,43575.0,0.2692734]
[1633054729603,0.11,43576.0,43575.0,0.3082734]
[1633054730005,0.11,43576.0,43575.0,0.0798104]
[1633054730265,0.11,43576.0,43575.0,0.0592]
[1633054730804,0.11,43576.0,43575.0,0.0202]
[1633054731608,0.121,43576.0,43575.0,0.0542]
[1633054732608,0.121,43576.0,43575.0,0.91003007]
[1633054732807,0.121,43576.0,43575.0,0.87603007]
[1633054732808,0.11,43576.0,43575.0,0.87603007]
[1633054733609,0.11,43576.0,43575.0,0.91003007]
[1633054733810,0.11052987,43576.0,43575.0,0.91003007]
[1633054734809,0.11052987,43576.0,43575.0,0.87603007]
[1633054735207,0.45488687,43576.0,43575.0,0.87603007]
[1633054735620,0.48088687,43576.0,43575.0,0.90203007]
[1633054736012,0.48088687,43576.0,43575.0,0.88183007]
[1633054736813,0.45488687,43576.0,43575.0,0.85583007]
[1633054737615,0.48088687,43576.0,43575.0,0.88083007]
[1633054738014,0.480357,43576.0,43575.0,0.88083007]
[1633054738220,0.136,43576.0,43575.0,0.88235709]
[1633054738815,0.11,43576.0,43575.0,0.85735709]
[1633054739018,0.11,43576.0,43575.0,0.964591]
[1633054739416,0.11,43576.0,43575.0,0.85735709]
[1633054739617,0.131,43576.0,43575.0,0.88735709]
[1633054739822,0.131,43576.0,43575.0,1.11524587]
[1633054740219,0.131,43576.0,43575.0,0.88735709]
[1633054740823,0.11,43576.0,43575.0,0.85735709]
[1633054741620,0.133,43576.0,43575.0,0.88735709]
[1633054742621,0.06331287,43588.0,43576.0,0.65]
[1633054742823,0.00125536,43583.0,43577.0,0.51910647]
[1633054743022,0.00125536,43583.0,43579.0,0.2480353]
[1633054743221,0.00125536,43583.0,43580.0,0.43189557]
[1633054743623,0.02225536,43583.0,43580.0,0.54753473]
[1633054744128,0.02225536,43583.0,43582.0,0.09980055]
[1633054744324,0.021,43583.0,43582.0,0.29227721]
[1633054744526,0.021,43583.0,43582.0,0.42093966]
[1633054744731,0.0912664,43591.0,43590.0,0.34478687]
[1633054744732,0.0633684,43591.0,43590.0,0.34478687]
[1633054744932,0.2266368,43596.0,43590.0,0.82986893]
[1633054744933,0.0999,43596.0,43590.0,0.82986893]
[1633054745134,0.0999,43596.0,43595.0,0.00125405]
[1633054745389,0.0999,43596.0,43595.0,0.02145405]
[1633054745587,0.0999,43596.0,43595.0,0.46913036]
[1633054745785,0.0999,43596.0,43595.0,0.55416929]
[1633054746187,0.00052987,43605.0,43595.0,0.55416929]
[1633054746389,0.00052987,43606.0,43595.0,0.32570629]
[1633054746588,3.59001075,43612.0,43595.0,0.32570629]
[1633054746786,0.08343219,43610.0,43595.0,0.32570629]
[1633054746985,0.08289621,43609.0,43595.0,0.32570629]
[1633054747186,0.18152714,43600.0,43595.0,0.32570629]
[1633054747390,0.00052987,43608.0,43596.0,0.198463]
[1633054747588,0.344139,43605.0,43596.0,0.0202]
[1633054747988,0.00052987,43604.0,43598.0,0.229411]
[1633054748188,0.444039,43605.0,43599.0,0.2146801]
[1633054748789,0.0122695,43604.0,43599.0,0.21625656]
[1633054748987,0.22470452,43600.0,43599.0,0.21625656]
[1633054749389,0.0999,43605.0,43599.0,0.21625656]
[1633054749587,0.0999,43605.0,43599.0,0.24225656]
[1633054750388,0.18693081,43600.0,43599.0,0.24225656]
[1633054750589,0.19919452,43600.0,43599.0,0.24225656]
[1633054750791,0.18693081,43600.0,43599.0,0.21625656]
[1633054751590,0.18693081,43600.0,43599.0,0.24355106]
[1633054751990,0.0999,43605.0,43599.0,0.24355106]
[1633054752791,0.0999,43605.0,43599.0,0.21755106]
[1633054752992,0.22268274,43603.0,43599.0,0.21755106]
[1633054753192,0.22268274,43603.0,43599.0,0.56165106]
[1633054753397,0.01299868,43602.0,43599.0,0.00287096]
[1633054753594,0.01299868,43602.0,43599.0,0.02987096]
[1633054753796,0.00052987,43601.0,43599.0,0.02987096]
[1633054753993,0.01262066,43600.0,43599.0,0.02987096]
[1633054754397,0.01262066,43600.0,43599.0,0.20783025]
[1633054754595,0.22268274,43603.0,43599.0,0.20783025]
[1633054754794,0.22268274,43603.0,43599.0,0.18083025]
[1633054755595,0.22321261,43603.0,43599.0,0.20783025]
[1633054755995,0.00052987,43602.0,43599.0,0.20783025]
[1633054756195,0.22321261,43603.0,43599.0,0.20783025]
[1633054756596,0.22268274,43603.0,43599.0,0.20783025]
[1633054756795,0.22268274,43603.0,43599.0,0.18083025]
[1633054756994,0.25268274,43603.0,43599.0,0.18083025]
[1633054757596,0.25268274,43603.0,43599.0,0.20783025]
[1633054758002,0.50813165,43597.0,43591.0,0.458838]
[1633054758204,0.00122026,43592.0,43590.0,0.34478687]
[1633054758403,0.03315214,43591.0,43590.0,0.34478687]
[1633054758600,0.03368201,43591.0,43590.0,0.34478687]
[1633054758795,0.23023574,43591.0,43590.0,0.34478687]
[1633054759000,0.81299676,43591.0,43590.0,0.34478687]
[1633054759198,0.1323489,43590.0,43577.0,1.16671871]
[1633054759402,0.00125326,43584.0,43575.0,0.85583007]
[1633054759599,0.27090674,43584.0,43575.0,0.85583007]
[1633054759799,0.02628259,43581.0,43575.0,0.85583007]
[1633054759999,0.344349,43578.0,43575.0,0.85583007]
[1633054760199,0.07265142,43577.0,43575.0,0.85583007]
[1633054760398,0.01497976,43576.0,43575.0,0.85583007]
[1633054760598,0.01550963,43576.0,43575.0,0.85583007]
[1633054761398,0.35987763,43576.0,43575.0,0.85583007]
[1633054761601,0.38787763,43576.0,43575.0,0.88383007]
[1633054761999,0.372368,43576.0,43575.0,0.88383007]
[1633054762600,0.028,43576.0,43575.0,0.88383007]
[1633054762799,0.00120741,43578.0,43575.0,0.85583007]
[1633054762998,0.00254513,43577.0,43575.0,0.85583007]
[1633054763200,0.00052987,43576.0,43575.0,0.85583007]
[1633054763603,0.38356325,43577.0,43575.0,0.88283007]
[1633054764003,0.372361,43577.0,43576.0,0.01346443]
[1633054764207,0.56898138,43577.0,43575.0,0.88283007]
[1633054764403,0.19507044,43576.0,43575.0,0.88283007]
[1633054764609,0.19683463,43576.0,43575.0,0.88283007]
[1633054764802,0.23191221,43576.0,43575.0,0.85583007]
[1633054765202,0.06678277,43576.0,43575.0,0.85583007]
[1633054765607,0.0653119,43576.0,43575.0,0.87983007]
[1633054766604,0.27542468,43576.0,43575.0,0.27405758]
[1633054766807,0.30714211,43576.0,43575.0,0.26818991]
[1633054767003,0.40714211,43576.0,43575.0,0.26818991]
[1633054767205,0.40017585,43576.0,43575.0,0.26818991]
[1633054767401,0.37117585,43576.0,43575.0,0.24418991]
[1633054767602,0.19929751,43576.0,43575.0,0.26718991]
[1633054768403,0.54366651,43576.0,43575.0,0.26718991]
[1633054769604,0.53966651,43576.0,43575.0,0.25718991]
[1633054770004,1.08966651,43576.0,43575.0,8.991e-05]
[1633054770210,1.15192651,43576.0,43575.0,8.991e-05]
[1633054770407,1.15192651,43576.0,43555.0,0.00082]
[1633054770408,0.0808581,43560.0,43555.0,0.00082]
[1633054770707,0.00122543,43556.0,43555.0,0.00082]
[1633054770904,0.0054531,43556.0,43555.0,0.00082]
[1633054771104,0.00492323,43556.0,43555.0,0.00082]
[1633054771309,0.91195003,43556.0,43555.0,0.00082]
[1633054771513,1.1126209,43556.0,43555.0,0.00082]
[1633054771705,0.4426209,43556.0,43555.0,0.02589629]
[1633054772304,1.0926209,43556.0,43555.0,0.02589629]
[1633054772505,1.26368994,43556.0,43555.0,0.02589629]
[1633054772903,0.59614179,43556.0,43555.0,0.02589629]
[1633054773103,0.59614179,43556.0,43555.0,0.00089629]
[1633054773104,0.56614179,43556.0,43555.0,0.00089629]
[1633054773704,0.59714179,43556.0,43555.0,0.02089629]
[1633054774304,0.89714179,43556.0,43555.0,0.02089629]
[1633054774707,1.19714179,43556.0,43555.0,0.01589629]
[1633054774907,1.05666079,43556.0,43555.0,0.01589629]
[1633054775107,1.02566079,43556.0,43554.0,0.00062]
[1633054775308,0.63417523,43555.0,43554.0,0.00062]
[1633054775507,0.1549051,43555.0,43554.0,0.00062]
[1633054775710,0.1549051,43555.0,43554.0,0.01762]
[1633054775914,0.0549051,43555.0,43554.0,0.01762]
[1633054776109,0.05437523,43555.0,43554.0,0.01762]
[1633054776507,0.0549051,43555.0,43554.0,0.01762]
[1633054777512,0.05437523,43555.0,43554.0,0.01762]
[1633054777810,0.08837523,43555.0,43554.0,0.03362]
[1633054778011,0.18837523,43555.0,43554.0,0.03362]
[1633054778212,0.1549051,43555.0,43554.0,0.00062]
[1633054779211,0.5049051,43555.0,43554.0,0.00062]
[1633054779615,0.1879051,43555.0,43554.0,0.01262]
[1633054779817,0.06592691,43555.0,43554.0,0.01262]
[1633054780015,0.06592691,43555.0,43554.0,0.02590542]
[1633054780217,0.06721135,43555.0,43554.0,0.01262]
[1633054780613,0.06774122,43555.0,43554.0,0.01262]
[1633054781012,0.03474122,43555.0,43554.0,0.00062]
[1633054781612,0.07274122,43555.0,43554.0,0.01162]
[1633054782013,0.17274122,43555.0,43554.0,0.01162]
[1633054782216,0.17274122,43555.0,43554.0,0.01168898]
[1633054783012,0.13175531,43555.0,43554.0,0.00068898]
[1633054783616,0.15875531,43555.0,43554.0,0.01168898]
[1633054784818,0.15875531,43555.0,43554.0,0.00068898]
[1633054785013,0.13175531,43555.0,43554.0,0.00068898]
[1633054785614,0.16875531,43555.0,43554.0,0.01068898]
[1633054787018,0.03175531,43555.0,43554.0,0.00068898]
[1633054787616,0.06922544,43555.0,43554.0,0.01068898]
[1633054788015,0.06975531,43555.0,43554.0,0.01068898]
[1633054789016,0.03122544,43555.0,43554.0,0.00068898]
[1633054789421,0.03175531,43555.0,43554.0,0.00068898]
[1633054789616,0.06975531,43555.0,43554.0,0.01168898]
[1633054790418,0.16975531,43555.0,43554.0,0.01168898]
[1633054791017,0.13175531,43555.0,43554.0,0.00068898]
[1633054791818,0.16975531,43555.0,43554.0,0.01168898]
[1633054793021,0.13175531,43555.0,43554.0,0.00068898]
[1633054793821,0.16975531,43555.0,43554.0,0.01168898]
[1633054794025,0.13175531,43555.0,43554.0,0.00068898]
[1633054794423,0.13122544,43555.0,43554.0,0.00068898]
[1633054795627,0.029941,43555.0,43554.0,0.01868898]
[1633054795826,0.055941,43555.0,43554.0,0.01868898]
[1633054796629,0.026,43555.0,43554.0,0.01868898]
[1633054797627,0.026,43555.0,43554.0,0.03668898]
[1633054797628,0.036,43555.0,43554.0,0.03668898]
[1633054797832,0.01,43555.0,43554.0,0.01868898]
[1633054799129,0.00052987,43567.0,43554.0,0.22388898]
[1633054799332,0.00052987,43571.0,43556.0,0.00344425]
[1633054799531,0.822045,43574.0,43557.0,0.0202]
[1633054799532,0.00052987,43572.0,43557.0,0.0202]
[1633054799732,0.029941,43571.0,43558.0,0.00443731]
[1633054799929,0.21400212,43561.0,43558.0,0.00443731]
[1633054800130,0.21400212,43561.0,43560.0,0.37131701]
[1633054800331,0.34494587,43570.0,43560.0,0.61863338]
[1633054800530,0.00052987,43570.0,43560.0,0.38981938]
[1633054800728,0.00052987,43570.0,43561.0,0.00676113]
[1633054801332,0.344461,43564.0,43560.0,0.19075051]
[1633054801729,0.00052987,43563.0,43561.0,0.023]
[1633054801930,0.20722837,43562.0,43561.0,0.023]
[1633054802932,0.20722837,43562.0,43560.0,0.19075051]
[1633054803329,0.68892717,43567.0,43560.0,0.19075051]
[1633054803531,0.22964017,43567.0,43560.0,0.19075051]
[1633054803729,0.028,43562.0,43560.0,0.21475051]
[1633054803928,0.028,43562.0,43561.0,0.2232]
[1633054804130,0.028,43562.0,43560.0,0.21475051]
[1633054804932,0.028,43562.0,43560.0,0.19075051]
[1633054805131,0.00052987,43571.0,43560.0,0.19075051]
[1633054805536,0.00052987,43572.0,43560.0,0.19075051]
[1633054805733,0.03,43571.0,43560.0,0.21575051]
[1633054805934,0.03,43571.0,43560.0,0.40332358]
[1633054806135,0.03,43571.0,43562.0,0.01375834]
[1633054806334,0.03,43571.0,43563.0,0.36112869]
[1633054806732,0.03,43571.0,43565.0,0.01849342]
[1633054806933,0.20889486,43568.0,43567.0,0.07839782]
[1633054807133,0.20889486,43568.0,43565.0,0.01849342]
[1633054807332,0.00052987,43567.0,43560.0,0.29213979]
[1633054807533,0.00052987,43567.0,43560.0,0.10203831]
[1633054807735,0.34496187,43567.0,43565.0,0.016]
[1633054807936,0.14165213,43566.0,43565.0,0.016]
[1633054808136,0.22219671,43566.0,43565.0,0.016]
[1633054808932,0.22219671,43566.0,43555.0,0.29775288]
[1633054809134,0.21130841,43561.0,43555.0,0.09965193]
[1633054809332,0.00102361,43560.0,43555.0,0.09965193]
[1633054809734,0.00049374,43560.0,43555.0,0.13065193]
[1633054809932,0.00049374,43560.0,43557.0,0.2232]
[1633054810132,0.00049374,43560.0,43558.0,0.228814]
[1633054810333,0.00049374,43560.0,43559.0,0.0068426]
[1633054810536,0.00049374,43560.0,43559.0,0.2356566]
[1633054811336,0.00049374,43560.0,43559.0,0.228814]
[1633054811732,0.00049374,43560.0,43559.0,0.032]
[1633054811733,0.02049374,43560.0,43559.0,0.032]
[1633054812531,0.02049374,43560.0,43559.0,0.12547422]
[1633054812937,0.02049374,43560.0,43559.0,0.032]
[1633054813136,0.00049374,43560.0,43556.0,0.0202]
[1633054813338,0.00049374,43560.0,43557.0,0.00479068]
[1633054814332,0.23265093,43563.0,43557.0,0.00479068]
[1633054814533,0.00049374,43560.0,43557.0,0.00479068]
[1633054815732,0.00049374,43560.0,43557.0,0.03779068]
[1633054815936,0.00049374,43560.0,43558.0,0.23706773]
[1633054816135,0.00049374,43560.0,43559.0,0.00984506]
[1633054816331,0.00049374,43560.0,43559.0,0.23865906]
[1633054817335,0.00049374,43560.0,43559.0,0.00984506]
[1633054817533,0.00049374,43560.0,43556.0,0.0202]
[1633054817733,0.00049374,43560.0,43559.0,0.03]
[1633054817734,0.02249374,43560.0,43559.0,0.03]
[1633054817936,0.22964025,43567.0,43560.0,0.02249374]
[1633054818147,0.459257,43578.0,43569.0,0.22964025]
[1633054818337,0.59014943,43580.0,43572.0,0.02941139]
[1633054818338,0.00124943,43580.0,43572.0,0.02941139]
[1633054818537,0.029941,43579.0,43573.0,0.26186313]
[1633054818834,0.00121165,43584.0,43573.0,0.26186313]
[1633054818835,0.24270534,43576.0,43574.0,0.01348648]
[1633054819033,0.24270534,43576.0,43575.0,0.32999093]
[1633054819235,0.24270534,43576.0,43575.0,0.54535641]
[1633054819833,0.27170534,43576.0,43575.0,0.56335641]
[1633054820292,0.27170534,43576.0,43575.0,0.46852751]
[1633054820636,0.27170534,43576.0,43575.0,0.45509731]
[1633054821037,0.24270534,43576.0,43575.0,0.43709731]
[1633054821836,0.24270534,43576.0,43575.0,0.46209731]
[1633054821837,0.25570534,43576.0,43575.0,0.46209731]
[1633054823036,0.24270534,43576.0,43575.0,0.43709731]
[1633054823839,0.26370534,43576.0,43575.0,0.46209731]
[1633054825039,0.24270534,43576.0,43575.0,0.43709731]
[1633054825643,0.67354692,43585.0,43575.0,0.43709731]
[1633054825840,0.026,43576.0,43575.0,0.46209731]
[1633054826843,0.026,43576.0,43575.0,0.46362432]
[1633054827041,0.344333,43580.0,43575.0,0.43862432]
[1633054827241,0.24382065,43577.0,43575.0,0.43862432]
[1633054827439,0.24382065,43577.0,43576.0,0.18684195]
[1633054827642,0.344333,43580.0,43576.0,0.18684195]
[1633054827845,0.72264582,43592.0,43577.0,0.01349097]
[1633054827846,0.00128009,43587.0,43577.0,0.01349097]
[1633054828041,0.13287877,43590.0,43577.0,0.01349097]
[1633054828241,0.009926,43589.0,43577.0,0.01349097]
[1633054828440,0.00052987,43588.0,43577.0,0.01349097]
[1633054828640,0.24381542,43579.0,43578.0,0.08748133]
[1633054828844,0.24381542,43579.0,43578.0,0.19352123]
[1633054829840,0.26781542,43579.0,43578.0,0.22252123]
[1633054830241,0.26781542,43579.0,43578.0,0.23580938]
[1633054830441,0.61214942,43579.0,43578.0,0.23580938]
[1633054830840,0.61214942,43579.0,43578.0,0.22252123]
[1633054831041,0.61214942,43579.0,43578.0,0.19352123]
[1633054831242,0.58814942,43579.0,43578.0,0.19352123]
[1633054831445,0.24381542,43579.0,43578.0,0.19352123]
[1633054831842,0.25181542,43579.0,43578.0,0.22804815]
[1633054832644,0.008,43579.0,43578.0,0.22804815]
[1633054833046,0.0732946,43589.0,43578.0,0.19504815]
[1633054833246,0.009926,43585.0,43582.0,0.08218503]
[1633054833445,0.009926,43585.0,43583.0,0.19790788]
[1633054833647,0.24291776,43584.0,43578.0,0.00152692]
[1633054833846,0.00052987,43583.0,43578.0,0.00152692]
[1633054834054,0.00052987,43583.0,43576.0,0.23542194]
[1633054834445,0.24291776,43584.0,43582.0,0.024]
[1633054834644,0.25776731,43583.0,43582.0,0.024]
[1633054835048,0.25902165,43583.0,43582.0,0.024]
[1633054835246,0.25902165,43583.0,43576.0,0.23542194]
[1633054835247,0.01657025,43582.0,43575.0,0.00152692]